[Event "44th Chess Olympiad Open 2022"]
[Site "Chennai"]
[Date "2022.07.31"]
[Round "3.7"]
[White "Grandelius, Nils"]
[Black "Giri, Anish"]
[Result "0-1"]
[WhiteElo "2655"]
[BlackElo "2760"]
[Annotator "TA"]
[PlyCount "114"]
[EventDate "2022.??.??"]
[TimeControl "60"]

{[%evp 23,114,0,0,9,17,16,4,-22,-18,-18,0,0,0,0,0,0,0,0,0,-17,-22,-22,-22,-22,
-22,-22,-22,-22,-22,-22,-23,-68,-71,-75,-75,-75,-75,-75,-75,-75,-79,-87,-79,
-79,-79,-79,-79,-79,-51,-71,-69,-77,-66,-71,-70,-95,-45,-46,-31,-27,-24,-25,
-34,-81,-43,-79,-63,-73,-75,-78,-58,-110,-109,-116,-116,-124,-129,-133,-116,
-413,-413,-407,-393,-29966,-29972,-29972,-29973,-29973,-29971,-29971,-29970,
-29994,-29995]} 1. d4 {[%emt 0:00:16]} Nf6 {[%emt 0:01:07]} 2. Nf3 {[%emt 0:00:
00]} d5 {[%emt 0:00:39]} 3. c4 {[%emt 0:00:10]} e6 {[%emt 0:00:19]} 4. g3 {
[%emt 0:01:25]} Bb4+ {[%emt 0:00:51]} 5. Bd2 {[%emt 0:00:12][%cal Yc1d2,Yd2f4,
Yf4c7]} Be7 {[%emt 0:00:07]} 6. Bg2 {[%emt 0:00:41]} O-O {[%emt 0:00:00]} 7.
O-O {[%emt 0:00:47]} c6 {[%emt 0:00:04]} 8. Qc2 {[%emt 0:00:48]} Nbd7 {[%emt 0:
00:30]} 9. Bf4 {[%emt 0:00:53]} b6 {[%emt 0:02:08]} 10. cxd5 {[%emt 0:00:00]}
cxd5 {[%emt 0:00:06]} 11. Rc1 {[%emt 0:09:09]} Bb7 {[%emt 0:05:02]} 12. Bc7 {
[%emt 0:01:20]} Qe8 {[%emt 0:00:13]} 13. Qb3 {[%emt 0:00:43] E08: Closed
Catalan: Main Line: 7 Qc2.} Rc8 {[%emt 0:12:04] White must now prevent ...Bd6.}
14. Na3 {[%emt 0:04:47]} Ne4 {[%emt 0:01:10] [#]} 15. Bf4 $146 {[%emt 0:28:29]
The position is equal.} (15. Nb5 $5 {[%cal Rb5a7]}) ({Predecessor:} 15. Nb5
Ndc5 16. dxc5 bxc5 17. Bf4 c4 18. Qa4 Bc5 19. Be3 Bc6 20. Nfd4 Bxd4 21. Bxd4
Bxb5 22. Qxa7 {½-½ (79) Can,E (2599)-Sargsyan,S (2641) Sharjah 2022}) 15...
g5 {[%emt 0:14:59]} 16. Be3 {[%emt 0:02:47]} h6 {[%emt 0:12:13]} 17. Rxc8 {
[%emt 0:02:55]} Qxc8 {[%emt 0:00:42]} 18. Rc1 {[%emt 0:04:48]} Qb8 {[%emt 0:00:
00]} 19. Nb5 {[%emt 0:15:49]} a6 {[%emt 0:04:41]} 20. Nc3 {[%emt 0:00:04]} (20.
Rc7 $2 Nef6 21. Ne5 Rd8 22. Nxd7 Nxd7 23. Rxb7 Qxb7 $19) 20... Rc8 {[%emt 0:00:
00]} 21. Nxe4 {[%emt 0:08:45]} dxe4 {[%emt 0:01:50]} 22. Ne5 {[%emt 0:01:07]}
Rxc1+ {[%emt 0:06:45]} 23. Bxc1 {[%emt 0:00:02]} Nxe5 {[%emt 0:04:07]} 24. dxe5
{[%emt 0:00:02]} Qc7 {[%emt 0:04:07]} 25. Be3 {[%emt 0:04:39]} b5 {[%emt 0:00:
00]} 26. Qd1 $1 {[%emt 0:00:45]} ({But not} 26. Qc3 Qxc3 27. bxc3 Bd5 $17)
26... Bf8 {[%emt 0:01:06][%cal Ye7f8,Yf8g7,Yg7e5]} (26... Qxe5 $2 27. Qd7 $18)
27. Qd4 {[%emt 0:06:49]} Bg7 {[%emt 0:04:33]} 28. Bxe4 {[%emt 0:01:23] Qa7 is
the strong threat.} Bxe5 {[%emt 0:00:15]} 29. Qd3 {[%emt 0:00:11]} Bxb2 {
[%emt 0:04:00]} 30. Bxb7 {[%emt 0:00:10]} Qxb7 $17 {[%emt 0:00:03] Endgame
KQB-KQB} 31. Qd8+ {[%emt 0:01:04]} Kh7 {[%emt 0:00:52]} 32. h4 {[%emt 0:01:09]}
gxh4 {[%emt 0:00:48]} 33. Qxh4 {[%emt 0:00:23]} Bg7 {[%emt 0:00:00]} 34. Qb4 {
[%emt 0:00:43]} Qd5 {[%emt 0:00:38]} 35. Qa3 {[%emt 0:00:27]} Qc6 {[%emt 0:04:
38] Black is more active.} 36. Qd3+ {[%emt 0:00:04]} f5 {[%emt 0:00:12]} 37.
Qa3 {[%emt 0:00:05]} Kg6 {[%emt 0:00:46]} 38. Kh2 {[%emt 0:00:00]} Kf7 {
[%emt 0:00:35]} (38... Qa8 {looks sharper.} 39. Qe7 Qd5 40. a3 Qc6) 39. Qa5 {
[%emt 0:00:54]} e5 {[%emt 0:02:46]} (39... h5 $17 40. Qd8 Bf6) 40. Bb6 $15 {
[%emt 0:00:32]} Qb7 {[%emt 0:01:59]} 41. Be3 {[%emt 0:06:20]} Qc8 {[%emt 0:00:
58]} 42. Qb6 {[%emt 0:06:20]} Qe6 {[%emt 0:00:48]} 43. Qa5 {[%emt 0:00:00]} (
43. Qb7+ $15 Kg6 44. a3) 43... Kg6 {[%emt 0:01:44]} 44. Bb6 {[%emt 0:00:00]}
Bf8 {[%emt 0:00:58]} 45. Be3 {[%emt 0:03:14]} ({Not} 45. Qxa6 $2 Bc5 46. Qxb5
Bxb6 $19) 45... Be7 {[%emt 0:04:29]} 46. Qc7 {[%emt 0:00:23]} Bf6 {[%emt 0:03:
43]} 47. Qa5 {[%emt 0:03:50]} ({White should play} 47. a3 $15) 47... h5 $17 {
[%emt 0:02:22][%cal Yf5f4]} 48. Bc1 {[%emt 0:00:25] Inhibits f4.} h4 {[%emt 0:
01:30]} (48... f4 {keeps more tension.} 49. Qd2 fxg3+ 50. fxg3 Qg4) 49. gxh4 {
[%emt 0:01:34]} Bxh4 {[%emt 0:01:10]} (49... Qc4 {seems wilder.} 50. h5+ Kxh5
51. Qxa6 Kg6) 50. Kg1 {[%emt 0:00:18]} f4 {[%emt 0:07:14]} 51. Bb2 $2 {[%emt 0:
03:05] This costs White the game.} (51. Bd2 $17) 51... Qg4+ $19 {[%emt 0:04:25]
} 52. Kf1 {[%emt 0:00:32]} Qh3+ {[%emt 0:00:04]} 53. Kg1 $2 {[%emt 0:01:47] [#]
} (53. Ke1 $19 Qh1+ 54. Kd2 Qd5+ 55. Ke1) 53... Bg3 $1 {[%emt 0:05:45] Black
mates.} 54. Qb6+ {[%emt 0:00:31]} Kh5 {[%emt 0:00:00]} 55. f3 {[%emt 0:01:23]}
Qd7 {[%emt 0:02:46]} 56. Kg2 {[%emt 0:03:27]} Qd2 {[%emt 0:01:48]} 57. Kh3 {
[%emt 0:00:14]} Qxe2 {[%emt 0:00:39] Weighted Error Value: White=0.30/Black=0.
04 (flawless)} 0-1

[Event "44th Chess Olympiad Open 2022"]
[Site "Chennai"]
[Date "2022.07.31"]
[Round "3.7"]
[White "Warmerdam, Max"]
[Black "Berg, Emanuel"]
[Result "1-0"]
[WhiteElo "2610"]
[BlackElo "2533"]
[Annotator "RC"]
[PlyCount "67"]
[EventDate "2022.??.??"]
[TimeControl "60"]

1. Nf3 {[%emt 0:00:04]} c5 {[%emt 0:05:51]} 2. e4 {[%emt 0:01:31]} d6 {[%emt 0:
00:00]} 3. d4 {[%emt 0:00:30]} cxd4 {[%emt 0:00:39]} 4. Qxd4 {[%emt 0:00:06]}
a6 {[%emt 0:04:34]} 5. h3 {[%emt 0:02:11]} Nc6 {[%emt 0:02:17]} 6. Qe3 {
[%emt 0:00:07]} Nf6 {[%emt 0:03:32]} 7. Be2 {[%emt 0:01:15]} e6 {[%emt 0:11:34]
} 8. O-O {[%emt 0:01:37]} Be7 {[%emt 0:04:18]} 9. Rd1 {[%emt 0:01:05]} Qc7 {
[%emt 0:01:57]} 10. c4 {[%emt 0:01:11]} O-O {[%emt 0:08:25]} 11. Nc3 {[%emt 0:
00:00]} Rd8 {[%emt 0:16:35]} 12. b3 {[%emt 0:05:36]} Bd7 {[%emt 0:11:48]} 13.
Ba3 {[%emt 0:06:41]} Be8 {[%emt 0:01:10]} 14. Rac1 {[%emt 0:07:18]} Qa5 {
[%emt 0:04:30]} 15. Bb2 {[%emt 0:00:38]} Ne5 {[%emt 0:04:40]} 16. Nd4 {[%emt 0:
00:00]} Ng6 {[%emt 0:02:39]} 17. a3 {[%emt 0:07:28]} h6 {[%emt 0:08:02]} 18.
Bf1 {[%emt 0:14:52]} Qg5 {[%emt 0:01:13]} 19. Qe1 {[%emt 0:01:08]} h5 {[%emt 0:
00:00]} 20. Nf3 {[%emt 0:02:00]} Qh6 {[%emt 0:00:29]} 21. Rc2 {[%emt 0:01:26]}
h4 {[%emt 0:00:18]} 22. Bc1 {[%emt 0:03:10]} Nf4 {[%emt 0:00:12]} 23. Kh1 {
[%emt 0:09:50]} e5 {[%emt 0:02:49]} 24. c5 {[%emt 0:09:58]} dxc5 {[%emt 0:00:
00]} 25. Nxe5 {[%emt 0:00:07]} g5 {[%emt 0:00:27]} 26. Nd5 {[%emt 0:02:06]}
N6xd5 {[%emt 0:00:33]} 27. exd5 {[%emt 0:00:10]} Nxd5 {[%emt 0:00:31]} 28. Bc4
{[%emt 0:01:07]} Nb6 {[%emt 0:00:29]} 29. Ng4 {[%emt 0:05:18]} Qf8 {[%emt 0:00:
00]} 30. Rxd8 {[%emt 0:00:13]} Bxd8 {[%emt 0:00:34]} 31. Bd3 {[%emt 0:03:00]}
Bc6 {[%emt 0:00:30]} 32. Bb2 {[%emt 0:00:27]} Nd5 {[%emt 0:00:30]} 33. Qe4 {
[%emt 0:00:32]} Nf6 {[%emt 0:00:30]} 34. Nxf6+ {[%emt 0:00:04]} 1-0

[Event "44th Chess Olympiad Open 2022"]
[Site "Chennai"]
[Date "2022.07.31"]
[Round "3.7"]
[White "Hillarp Persson, Tiger"]
[Black "Bok, Benjamin"]
[Result "0-1"]
[WhiteElo "2516"]
[BlackElo "2616"]
[Annotator "RC"]
[PlyCount "133"]
[EventDate "2022.??.??"]
[TimeControl "60"]

1. c4 {[%emt 0:00:04]} c5 {[%emt 0:00:10]} 2. Nf3 {[%emt 0:00:24]} Nc6 {
[%emt 0:00:28]} 3. Nc3 {[%emt 0:00:40]} Nf6 {[%emt 0:00:08]} 4. g3 {[%emt 0:00:
00]} d5 {[%emt 0:00:57]} 5. cxd5 {[%emt 0:01:30]} Nxd5 {[%emt 0:00:05]} 6. Bg2
{[%emt 0:00:44]} g6 {[%emt 0:00:56]} 7. O-O {[%emt 0:03:58]} Bg7 {[%emt 0:00:
00]} 8. Nxd5 {[%emt 0:09:17]} Qxd5 {[%emt 0:00:04]} 9. d3 {[%emt 0:00:10]} O-O
{[%emt 0:00:36]} 10. a3 {[%emt 0:00:44]} Qd6 {[%emt 0:10:58]} 11. Bf4 {[%emt 0:
00:00]} e5 {[%emt 0:00:09]} 12. Be3 {[%emt 0:00:06]} Bd7 {[%emt 0:01:21]} 13.
Nd2 {[%emt 0:15:02]} b6 {[%emt 0:00:07]} 14. b4 {[%emt 0:02:01]} cxb4 {[%emt 0:
00:00]} 15. Nc4 {[%emt 0:02:12]} Qe6 {[%emt 0:10:17]} 16. axb4 {[%emt 0:01:55]}
Rac8 {[%emt 0:00:12]} 17. b5 {[%emt 0:15:10]} Nd4 {[%emt 0:00:09]} 18. Rxa7 {
[%emt 0:05:11]} Bxb5 {[%emt 0:00:18]} 19. Bxd4 {[%emt 0:01:20]} exd4 {[%emt 0:
00:00]} 20. Rb7 {[%emt 0:16:39]} Bxc4 {[%emt 0:06:40]} 21. dxc4 {[%emt 0:00:12]
} Rxc4 {[%emt 0:00:08]} 22. Qd3 {[%emt 0:06:27]} Rc3 {[%emt 0:31:17]} 23. Qe4 {
[%emt 0:00:46]} Qd6 {[%emt 0:00:06]} 24. Qd5 {[%emt 0:02:42]} Qxd5 {[%emt 0:00:
00]} 25. Bxd5 {[%emt 0:00:07]} d3 {[%emt 0:00:01]} 26. exd3 {[%emt 0:00:16]}
Rxd3 {[%emt 0:00:10]} 27. Bc4 {[%emt 0:01:30]} Rd4 {[%emt 0:02:32]} 28. Rc1 {
[%emt 0:03:08]} Rd2 {[%emt 0:00:28]} 29. Rxb6 {[%emt 0:01:48]} Bd4 {[%emt 0:00:
00]} 30. Rb3 {[%emt 0:00:26]} Rxf2 {[%emt 0:01:45]} 31. Kh1 {[%emt 0:00:09]}
Kg7 {[%emt 0:00:28]} 32. Rd1 {[%emt 0:01:06]} Be5 {[%emt 0:07:47]} 33. Re3 {
[%emt 0:00:37]} Rc8 {[%emt 0:02:25]} 34. Re2 {[%emt 0:01:34]} Rxe2 {[%emt 0:00:
00]} 35. Bxe2 {[%emt 0:00:06]} h5 {[%emt 0:02:27]} 36. Rd2 {[%emt 0:01:02]} f5
{[%emt 0:01:42]} 37. Kg2 {[%emt 0:00:12]} Rc3 {[%emt 0:00:08]} 38. Ra2 {
[%emt 0:00:57]} Kh6 {[%emt 0:00:37]} 39. Bf3 {[%emt 0:00:23]} Rc4 {[%emt 0:00:
00]} 40. h3 {[%emt 0:00:31]} h4 {[%emt 0:00:29]} 41. g4 {[%emt 0:02:48]} Kg5 {
[%emt 0:03:32]} 42. gxf5 {[%emt 0:00:32]} gxf5 {[%emt 0:00:06]} 43. Re2 {
[%emt 0:24:02]} Bd4 {[%emt 0:07:21]} 44. Rd2 {[%emt 0:02:12]} Bb6 {[%emt 0:00:
00]} 45. Rb2 {[%emt 0:00:29]} Bc7 {[%emt 0:00:42]} 46. Bd5 {[%emt 0:00:40]} Rc5
{[%emt 0:04:29]} 47. Be6 {[%emt 0:00:09]} Kf6 {[%emt 0:00:30]} 48. Bd7 {
[%emt 0:00:27]} Rd5 {[%emt 0:00:06]} 49. Bc8 {[%emt 0:00:24]} Rd8 {[%emt 0:00:
00]} 50. Ba6 {[%emt 0:00:09]} Rg8+ {[%emt 0:00:07]} 51. Kf1 {[%emt 0:00:38]}
Rg3 {[%emt 0:01:19]} 52. Rc2 {[%emt 0:01:08]} Be5 {[%emt 0:01:41]} 53. Bc8 {
[%emt 0:00:56]} Bd4 {[%emt 0:03:40]} 54. Rc4 {[%emt 0:01:31]} Ke5 {[%emt 0:00:
00]} 55. Rc7 {[%emt 0:01:23]} Ke4 {[%emt 0:05:26]} 56. Re7+ {[%emt 0:00:42]}
Kf3 {[%emt 0:01:10]} 57. Ke1 {[%emt 0:00:28]} Rg1+ {[%emt 0:01:24]} 58. Kd2 {
[%emt 0:00:06]} f4 {[%emt 0:00:05]} 59. Bg4+ {[%emt 0:00:50]} Kf2 {[%emt 0:00:
00]} 60. Re2+ {[%emt 0:00:24]} Kg3 {[%emt 0:00:08]} 61. Re8 {[%emt 0:00:46]} f3
{[%emt 0:00:24]} 62. Rf8 {[%emt 0:00:28]} f2 {[%emt 0:00:10]} 63. Be2 {[%emt 0:
00:00]} Kg2 {[%emt 0:00:51]} 64. Kd3 {[%emt 0:00:17]} Be5 {[%emt 0:00:45]} 65.
Bf3+ {[%emt 0:00:44]} Kxh3 {[%emt 0:00:14]} 66. Be2 {[%emt 0:00:07]} Bg3 {
[%emt 0:00:13]} 67. Kd4 {[%emt 0:00:41]} 0-1

[Event "44th Chess Olympiad Open 2022"]
[Site "Chennai"]
[Date "2022.07.31"]
[Round "3.8"]
[White "Korobov, Anton"]
[Black "Quesada Perez, Yasser"]
[Result "0-1"]
[WhiteElo "2692"]
[BlackElo "2568"]
[Annotator "TA"]
[PlyCount "134"]
[EventDate "2022.??.??"]
[TimeControl "60"]

{[%evp 9,134,15,14,10,0,11,22,0,0,0,0,-6,0,0,0,-8,0,-15,0,0,0,-40,0,0,0,-5,-6,
-10,-10,-12,-6,-11,-12,-13,-13,-83,-81,-122,-130,-135,-131,-134,-127,-116,-84,
-105,-82,-94,-87,-108,-100,-101,-102,-116,-109,-133,-94,-100,-102,-108,-111,
-111,-103,-136,-118,-131,-104,-122,-128,-108,-112,-109,-49,-139,-111,-99,-99,
-107,-97,-112,-120,-116,-115,-168,-160,-193,-191,-198,-160,-279,-285,-279,-281,
-266,-246,-252,-239,-241,-196,-193,-192,-1647,-1469,-29971,-29971,-29972,
-29972,-29976,-29977,-29977,-29978,-29978,-29979,-29978,-29979,-29980,-29981,
-29981,-29982,-29982,-29983,-29984,-29985,-29985,-29986,-29986,-29987]} 1. c4 {
[%emt 0:00:04]} e5 {[%emt 0:00:18]} 2. d3 {[%emt 0:00:08]} Bb4+ {[%emt 0:02:44]
} 3. Nd2 {[%emt 0:01:10]} Nf6 {[%emt 0:00:55]} 4. Ngf3 {[%emt 0:00:06]} d6 {
[%emt 0:09:12]} 5. a3 {[%emt 0:06:34]} Bxd2+ {[%emt 0:00:09]} 6. Bxd2 {[%emt 0:
00:00] A20: English Opening: 1...e5.} O-O {[%emt 0:01:15]} 7. e3 {[%emt 0:00:
00]} Nc6 {[%emt 0:08:40] [#]} 8. Qc2 $146 {[%emt 0:02:56] The position is
equal.} ({Predecessor:} 8. Bc3 b6 9. Be2 Bb7 10. O-O a5 11. Qc2 Qe7 12. d4 e4
13. Nd2 Nb8 14. b4 axb4 15. axb4 {1-0 (22) Tutov,N (1672)-Rivas Romero,J (1457)
LSS email 2013}) 8... a5 {[%emt 0:02:03]} 9. Be2 {[%emt 0:01:09]} a4 {[%emt 0:
00:00]} 10. Bc3 {[%emt 0:03:51]} Re8 {[%emt 0:02:57]} 11. O-O {[%emt 0:06:37]}
Bf5 {[%emt 0:09:45]} 12. Rad1 {[%emt 0:10:32]} h6 {[%emt 0:00:00]} 13. Rfe1 {
[%emt 0:05:36]} e4 {[%emt 0:00:00]} 14. dxe4 {[%emt 0:01:20]} Nxe4 {[%emt 0:00:
00]} 15. c5 {[%emt 0:04:07]} d5 {[%emt 0:09:05]} ({Don't play} 15... Nxc3 16.
Qxc3 Be4 17. cxd6 $11) (15... g6 $5 {[%cal Re4f2]} 16. Bd3 dxc5 $11) 16. Nd4 {
[%emt 0:06:14]} Bg6 {[%emt 0:07:05][%cal Ye4f2]} 17. Nxc6 {[%emt 0:10:38]} bxc6
{[%emt 0:00:06]} 18. Qc1 {[%emt 0:04:35]} Qh4 {[%emt 0:03:53]} 19. Rf1 {
[%emt 0:00:05]} Bh5 {[%emt 0:05:31]} 20. Bxh5 {[%emt 0:00:33]} Qxh5 {[%emt 0:
00:00]} 21. Bb4 {[%emt 0:01:31]} Re6 {[%emt 0:02:03]} 22. Rd4 {[%emt 0:05:48]}
(22. f3 $11 Ng5 23. Bc3) 22... Qe2 $17 {[%emt 0:00:07]} 23. Qe1 {[%emt 0:09:08]
} Qxb2 {[%emt 0:00:39] Black is much more active.} 24. Qb1 {[%emt 0:00:53]}
Qxb1 {[%emt 0:04:50]} 25. Rxb1 {[%emt 0:00:02]} Ree8 {[%emt 0:00:05]} 26. h4 {
[%emt 0:01:50]} Reb8 {[%emt 0:00:10] Hoping for ...Nxc5.} 27. Rc1 {[%emt 0:00:
00]} Nf6 {[%emt 0:02:50]} 28. f3 {[%emt 0:00:58]} Nh7 {[%emt 0:03:05]} 29. Kf2
{[%emt 0:00:43]} Nf8 {[%emt 0:00:10]} 30. g4 {[%emt 0:00:29]} Ne6 {[%emt 0:00:
00]} 31. Rd3 {[%emt 0:00:17]} Rf8 {[%emt 0:00:37]} 32. e4 {[%emt 0:01:34]} dxe4
{[%emt 0:04:07]} 33. fxe4 {[%emt 0:00:09]} Rfd8 {[%emt 0:00:05]} 34. Rcd1 {
[%emt 0:00:26]} Rxd3 {[%emt 0:00:06]} 35. Rxd3 {[%emt 0:00:04] Endgame KRB-KRN}
Kf8 {[%emt 0:00:08]} 36. Ke3 {[%emt 0:02:41]} Ke7 {[%emt 0:00:00]} 37. h5 {
[%emt 0:01:09]} Rg8 {[%emt 0:13:14]} 38. Be1 {[%emt 0:01:09]} Rb8 {[%emt 0:01:
12]} 39. Bb4 {[%emt 0:00:05]} f6 {[%emt 0:03:09]} 40. Rd1 {[%emt 0:00:00]} Ng5
{[%emt 0:01:04]} (40... Nf8 $17 41. Rd4 Nd7) 41. Ba5 {[%emt 0:00:00]} ({
Better is} 41. Kf4 $15) 41... Rb7 {[%emt 0:13:39]} 42. Bb4 {[%emt 0:00:00]} Nf7
{[%emt 0:00:00]} 43. Kf4 {[%emt 0:00:44]} Ke6 $1 {[%emt 0:00:00]} 44. Rd2 {
[%emt 0:03:10] [#]} Rb8 $1 {[%emt 0:00:00]} 45. Rd1 {[%emt 0:01:13]} Ne5 {
[%emt 0:00:00]} 46. Rd2 {[%emt 0:00:35]} (46. Kg3 $17 {was worth a try.}) 46...
g6 {[%emt 0:01:02]} 47. hxg6 {[%emt 0:02:26]} Nxg6+ {[%emt 0:00:08]} 48. Kg3 {
[%emt 0:01:20]} Ne5 {[%emt 0:00:04] Strongly threatening ...Rg8.} 49. Kh3 {
[%emt 0:01:02] [#]} (49. Rd4 $17) 49... Rg8 $1 $19 {[%emt 0:01:17]} 50. Rd4 {
[%emt 0:03:03]} Rxg4 {[%emt 0:06:16]} 51. Ba5 {[%emt 0:00:51]} Nf3 {[%emt 0:00:
00]} 52. Rxa4 {[%emt 0:03:00]} h5 {[%emt 0:00:05]} 53. Bxc7 {[%emt 0:00:09]}
Ng5+ {[%emt 0:00:05]} 54. Kh2 {[%emt 0:00:13]} Rxe4 {[%emt 0:03:08]} 55. Rxe4+
{[%emt 0:01:29]} (55. Ra8) 55... Nxe4 {[%emt 0:00:06] KB-KN} 56. Kh3 {[%emt 0:
00:00]} Nxc5 {[%emt 0:00:24] Black mates.} 57. Kh4 {[%emt 0:00:01]} Kf5 {
[%emt 0:02:24]} 58. Kxh5 {[%emt 0:00:06]} Na4 {[%emt 0:00:09]} 59. Kh4 {
[%emt 0:00:58]} Ke4 {[%emt 0:00:07]} 60. Kg3 {[%emt 0:00:19]} c5 {[%emt 0:00:
00][%cal Yc6c5,Yc5c4,Yc4c3,Yc3c2]} 61. Kf2 {[%emt 0:02:41]} f5 {[%emt 0:00:10]
[%cal Yf6f5,Yf5f4,Yf4f3]} 62. Ke2 {[%emt 0:00:17]} f4 {[%emt 0:01:04]} 63. Ba5
{[%emt 0:00:40]} f3+ {[%emt 0:00:40]} 64. Kd2 {[%emt 0:00:00]} c4 {[%emt 0:00:
20]} 65. Bd8 {[%emt 0:00:18]} c3+ {[%emt 0:00:23]} 66. Ke1 {[%emt 0:00:02]} c2
{[%emt 0:01:48]} 67. Bg5 {[%emt 0:00:05]} Nb2 {[%emt 0:00:00] Weighted Error
Value: White=0.40/Black=0.06 (flawless)} 0-1